fUST/lending_fUST_20260117
["ID","MTS","AMOUNT","RATE_DAILY","PERIOD"]
[402305603,1768653046282,-477.21486845,0.00015064,2]
[402305605,1768653046292,-778.0,0.00015069,2]
[402305606,1768653046301,-783.42207071,0.00015206,2]
[402305608,1768653046310,-3191.219439,0.00015316,7]
[402305610,1768653046319,-1200.0,0.00015316,2]
[402305612,1768653046328,-2000.0,0.00015342,2]
[402305614,1768653046338,-1561.32249094,0.00015342,2]
[402305616,1768653046347,-2000.0,0.00015342,2]
[402305618,1768653046356,-1503.66607308,0.00015342,2]
[402305620,1768653046366,-2000.0,0.00015342,2]
[402305622,1768653046375,-2000.0,0.00015342,2]
[402305624,1768653046384,-2123.55526284,0.00015342,2]
[402305626,1768653046394,-1500.0,0.000154,2]
[402305628,1768653046403,-1500.0,0.000154,2]
[402305629,1768653046413,-2045.40363,0.000154,2]
[402305631,1768653046422,-163.28,0.000154,2]
[402305633,1768653046431,-973.24371897,0.000154,30]
[402305635,1768653046441,-500.0,0.00015464,2]
[402305637,1768653046452,-2500.0,0.00015464,2]
[402305639,1768653046461,-500.0,0.00015464,2]
[402305641,1768653046470,-206.44598023,0.00015464,2]
[402305643,1768653046480,-1500.0,0.00015464,2]
[402305645,1768653046489,-163.28,0.000156,2]
[402305647,1768653046498,-160.0,0.000156,2]
[402305649,1768653046506,-160.0,0.000156,2]
[402305651,1768653046516,-160.0,0.000156,2]
[402305653,1768653046525,-160.0,0.000156,2]
[402305655,1768653046534,-500.0,0.00015749,30]
[402305657,1768653046543,-500.0,0.00015749,30]
[402305659,1768653046553,-500.0,0.00015749,30]
[402305661,1768653046562,-163.28,0.000158,2]
[402305663,1768653046575,-1503.86573033,0.00015864,2]
[402305665,1768653046584,-500.0,0.0001589,2]
[402305667,1768653046593,-1706.13735223,0.0001589,2]
[402305669,1768653046602,-2500.0,0.0001589,2]
[402305671,1768653046611,-215.9665256,0.00016,2]
[402305673,1768653046620,-160.44779279,0.00016003,2]
[402305674,1768653046629,-12057.76099,0.00016007,7]
[402305676,1768653046638,-3000.0,0.00016012,2]
[402305678,1768653046647,-1812.44971,0.00016062,7]
[402305680,1768653046657,-637.66218595,0.0001617,30]
[402305682,1768653046666,-207.28,0.00016288,2]
[402305684,1768653046675,-160.0,0.000163,2]
[402305686,1768653046684,-160.0,0.000163,2]
[402305688,1768653046696,-338.451563,0.000163,7]
[402305689,1768653046705,-207.27,0.00016317,2]
[402305691,1768653046714,-212.54773642,0.00016437,2]
[402305693,1768653046724,-500.0,0.00016438,3]
[402305695,1768653046734,-500.0,0.00016438,3]
[402305697,1768653046743,-500.0,0.00016438,3]
[402305699,1768653046752,-500.0,0.00016438,3]
[402305701,1768653046762,-500.0,0.00016438,3]
[402305702,1768653046771,-500.0,0.00016438,3]
[402305704,1768653046780,-500.0,0.00016438,3]
[402305707,1768653046789,-500.0,0.00016438,3]
[402305709,1768653046798,-500.0,0.00016438,3]
[402305711,1768653046808,-500.0,0.00016438,3]
[402305713,1768653046817,-500.0,0.00016438,3]
[402305715,1768653046826,-500.0,0.00016438,3]
[402305717,1768653046835,-940.35,0.00016438,3]
[402305719,1768653046844,-424.34553456,0.00016438,3]
[402305721,1768653046853,-464.68587701,0.00016438,3]
[402305722,1768653046862,-904.31,0.00016438,3]
[402305724,1768653046871,-500.0,0.00016438,3]
[402305726,1768653046881,-500.0,0.00016438,3]
[402305728,1768653046890,-1000.0,0.00016438,2]
[402305730,1768653046900,-500.0,0.00016438,3]
[402305732,1768653046910,-500.0,0.00016438,3]
[402305734,1768653046919,-500.0,0.00016438,3]
[402305736,1768653046928,-500.0,0.00016438,3]
[402305738,1768653046938,-500.0,0.00016438,3]
[402305740,1768653046947,-500.0,0.00016438,3]
[402305742,1768653046956,-557.26,0.00016438,3]
[402305744,1768653046965,-500.0,0.00016438,3]
[402305746,1768653046974,-500.0,0.00016438,3]
[402305747,1768653046983,-524.86,0.00016438,3]
[402305749,1768653046992,-500.0,0.00016438,3]
[402305751,1768653047002,-953.58,0.00016438,3]
[402305753,1768653047011,-500.0,0.00016438,3]
[402305755,1768653047020,-500.0,0.00016438,3]
[402305757,1768653047030,-587.21,0.00016438,3]
[402305759,1768653047039,-510.56,0.00016438,3]
[402305761,1768653047048,-1541.12,0.00016438,3]
[402305763,1768653047057,-505.74293991,0.00016438,3]
[402305765,1768653047066,-1016.13,0.00016438,3]
[402305767,1768653047074,-500.0,0.00016438,3]
[402305769,1768653047083,-500.0,0.00016438,3]
[402305770,1768653047092,-500.0,0.00016438,3]
[402305772,1768653047101,-500.0,0.00016438,3]
[402305774,1768653047110,-500.0,0.00016438,3]
[402305776,1768653047120,-500.0,0.00016438,3]
[402305778,1768653047128,-1289.75,0.00016438,3]
[402305780,1768653047137,-500.55,0.00016438,3]
[402305782,1768653047147,-500.0,0.00016438,3]
[402305784,1768653047156,-500.0,0.00016438,3]
[402305786,1768653047165,-500.0,0.00016438,3]
[402305788,1768653047174,-667.06,0.00016438,3]
[402305790,1768653047183,-500.0,0.00016438,3]
[402305792,1768653047192,-500.0,0.00016438,3]
[402305794,1768653047201,-500.0,0.00016438,3]
[402305796,1768653047210,-500.0,0.00016438,3]
[402305798,1768653047219,-500.0,0.00016438,3]
[402305799,1768653047229,-500.0,0.00016438,3]
[402305801,1768653047238,-500.0,0.00016438,3]
[402305803,1768653047247,-500.0,0.00016438,3]
[402305805,1768653047258,-500.0,0.00016438,3]
[402305807,1768653047267,-500.0,0.00016438,3]
[402305808,1768653047277,-500.0,0.00016438,3]
[402305809,1768653047287,-500.0,0.00016438,3]
[402305810,1768653047296,-500.0,0.00016438,3]
[402305811,1768653047306,-500.0,0.00016438,3]
[402305812,1768653047315,-500.64885102,0.00016438,3]
[402305813,1768653047324,-1507.14,0.00016438,3]
[402305814,1768653047334,-500.0,0.00016438,2]
[402305815,1768653047344,-500.0,0.00016438,2]
[402305816,1768653047353,-500.0,0.00016438,2]
[402305817,1768653047363,-500.0,0.00016438,2]
[402305818,1768653047372,-500.0,0.00016438,2]
[402305819,1768653047382,-500.0,0.00016438,2]
[402305820,1768653047391,-500.0,0.00016438,2]
[402305821,1768653047401,-500.0,0.00016438,2]
[402305822,1768653047410,-500.0,0.00016438,2]
[402305823,1768653047419,-500.0,0.00016438,2]
[402305824,1768653047428,-500.0,0.00016438,2]
[402305826,1768653047437,-500.0,0.00016438,2]
[402305828,1768653047447,-500.0,0.00016438,2]
[402305830,1768653047456,-500.0,0.00016438,2]
[402305832,1768653047465,-500.0,0.00016438,2]
[402305834,1768653047474,-500.0,0.00016438,2]
[402305836,1768653047483,-500.0,0.00016438,3]
[402305838,1768653047492,-500.0,0.00016438,2]
[402305840,1768653047501,-500.0,0.00016438,3]
[402305842,1768653047510,-500.0,0.00016438,2]
[402305844,1768653047519,-500.0,0.00016438,2]
[402305846,1768653047528,-500.0,0.00016438,2]
[402305848,1768653047537,-500.0,0.00016438,2]
[402305850,1768653047546,-500.0,0.00016438,2]
[402305852,1768653047555,-611.38007014,0.00016438,2]
[402305854,1768653047564,-500.0,0.00016438,3]
[402305856,1768653047573,-740.56,0.00016438,3]
[402305858,1768653047582,-500.0,0.00016438,3]
[402305860,1768653047591,-500.0,0.00016438,3]
[402305862,1768653047600,-681.74,0.00016438,3]
[402305864,1768653047609,-500.0,0.00016438,3]
[402305866,1768653047619,-500.0,0.00016438,3]
[402305868,1768653047628,-915.36,0.00016438,3]
[402305870,1768653047637,-500.0,0.00016438,3]
[402305872,1768653047646,-544.01,0.00016438,3]
[402305874,1768653047655,-500.0,0.00016438,3]
[402305876,1768653047664,-500.0,0.00016438,3]
[402305878,1768653047673,-500.0,0.00016438,3]
[402305880,1768653047685,-500.0,0.00016438,3]
[402305882,1768653047696,-1262.64,0.00016438,3]
[402305884,1768653047705,-500.0,0.00016438,3]
[402305886,1768653047715,-501.16566781,0.00016438,3]
[402305888,1768653047728,-500.0,0.00016438,3]
[402305890,1768653047737,-500.0,0.00016438,3]
[402305892,1768653047746,-500.0,0.00016438,3]
[402305894,1768653047757,-500.0,0.00016438,3]
[402305896,1768653047767,-850.25,0.00016438,3]
[402305898,1768653047776,-500.0,0.00016438,3]
[402305900,1768653047785,-500.0,0.00016438,3]
[402305902,1768653047795,-500.64667728,0.00016438,3]
[402305904,1768653047804,-500.0,0.00016438,3]
[402305906,1768653047813,-649.2,0.00016438,3]
[402305908,1768653047823,-500.0,0.00016438,3]
[402305910,1768653047832,-500.0,0.00016438,3]
[402305912,1768653047841,-784.71,0.00016438,3]
[402305914,1768653047851,-500.0,0.00016438,3]
[402305916,1768653047861,-500.0,0.00016438,3]
[402305917,1768653047871,-500.0,0.00016438,3]
[402305920,1768653047880,-500.0,0.00016438,3]
[402305921,1768653047889,-500.0,0.00016438,3]
[402305923,1768653047898,-825.73,0.00016438,3]
[402305926,1768653047907,-481.66318474,0.00016438,3]
[402305928,1768653047917,-609.64,0.00016438,3]
[402305929,1768653047926,-500.0,0.00016438,3]
[402305932,1768653047936,-500.0,0.00016438,3]
[402305934,1768653047945,-904.51,0.00016438,3]
[402305936,1768653047954,-500.0,0.00016438,3]
[402305937,1768653047963,-500.0,0.00016438,3]
[402305938,1768653047972,-995.62,0.00016438,3]
[402305939,1768653047983,-500.0,0.00016438,3]
[402305940,1768653047992,-875.03,0.00016438,3]
[402305941,1768653048002,-582.69,0.00016438,3]
[402305942,1768653048011,-848.03,0.00016438,3]
[402305943,1768653048020,-500.0,0.00016438,3]
[402305944,1768653048029,-500.0,0.00016438,3]
[402305945,1768653048039,-281.96847602,0.00016438,3]
[402305946,1768653048048,-500.0,0.00016438,3]
[402305947,1768653048058,-500.0,0.00016438,3]
[402305948,1768653048067,-500.0,0.00016438,3]
[402305949,1768653048077,-500.0,0.00016438,3]
[402305950,1768653048086,-500.0,0.00016438,3]
[402305951,1768653048095,-500.0,0.00016438,3]
[402305952,1768653048104,-500.0,0.00016438,3]
[402305953,1768653048113,-500.0,0.00016438,3]
[402305954,1768653048122,-500.0,0.00016438,3]
[402305955,1768653048132,-500.0,0.00016438,3]
[402305956,1768653048141,-500.0,0.00016438,3]
[402305957,1768653048151,-500.0,0.00016438,3]
[402305958,1768653048160,-540.82,0.00016438,3]
[402305959,1768653048169,-500.0,0.00016438,3]
[402305960,1768653048179,-500.0,0.00016438,3]
[402305961,1768653048188,-500.0,0.00016438,3]
[402305962,1768653048197,-1286.45,0.00016438,3]
[402305963,1768653048207,-1184.11,0.00016438,3]
[402305964,1768653048216,-2338.27,0.00016438,3]
[402305965,1768653048224,-500.0,0.00016438,3]
[402305966,1768653048234,-500.0,0.00016438,3]
[402305967,1768653048244,-500.0,0.00016438,3]
[402305968,1768653048253,-1074.96,0.00016438,3]
[402305969,1768653048263,-500.0,0.00016438,3]
[402305970,1768653048272,-500.0,0.00016438,3]
[402305971,1768653048281,-939.95,0.00016438,3]
[402305972,1768653048291,-500.0,0.00016438,3]
[402305973,1768653048300,-648.04,0.00016438,3]
[402305974,1768653048309,-1305.23,0.00016438,3]
[402305975,1768653048318,-500.0,0.00016438,3]
[402305976,1768653048328,-207.01,0.00016438,2]
[402305977,1768653048337,-500.0,0.00016438,3]
[402305978,1768653048346,-713.54,0.00016438,3]
[402305979,1768653048356,-500.0,0.00016438,3]
[402305980,1768653048365,-500.0,0.00016438,3]
[402305981,1768653048374,-500.0,0.00016438,3]
[402305982,1768653048384,-500.0,0.00016438,3]
[402305983,1768653048394,-617.87,0.00016438,3]
[402305984,1768653048403,-500.0,0.00016438,3]
[402305985,1768653048412,-500.0,0.00016438,3]
[402305986,1768653048421,-500.0,0.00016438,3]
[402305987,1768653048431,-500.0,0.00016438,3]
[402305988,1768653048439,-500.0,0.00016438,3]
[402305989,1768653048449,-580.8,0.00016438,3]
[402305990,1768653048458,-500.0,0.00016438,3]
[402305991,1768653048469,-499.59360928,0.00016438,3]
[402305993,1768653048478,-500.0,0.00016438,3]
[402305994,1768653048488,-500.0,0.00016438,3]
[402305995,1768653048498,-532.55606123,0.00016438,3]
[402305996,1768653048507,-797.95,0.00016438,3]
[402305997,1768653048516,-1586.94,0.00016438,3]
[402305998,1768653048526,-500.0,0.00016438,3]
[402306000,1768653048535,-500.0,0.00016438,3]
[402306002,1768653048545,-1834.58,0.00016438,3]
[402306004,1768653048557,-500.0,0.00016438,3]
[402306006,1768653048566,-500.0,0.00016438,3]
[402306007,1768653048574,-1542.76,0.00016438,3]
[402306008,1768653048584,-500.0,0.00016438,3]
[402306009,1768653048594,-500.0,0.00016438,3]
[402306010,1768653048604,-500.07551483,0.00016438,3]
[402306011,1768653048614,-500.0,0.00016438,3]
[402306012,1768653048623,-960.56,0.00016438,3]
[402306013,1768653048633,-500.0,0.00016438,3]
[402306014,1768653048643,-500.0,0.00016438,3]
[402306015,1768653048652,-500.0,0.00016438,3]
[402306016,1768653048662,-746.14,0.00016438,3]
[402306017,1768653048672,-500.0,0.00016438,3]
[402306018,1768653048682,-519.01,0.00016438,3]
[402306019,1768653048691,-500.0,0.00016438,3]
[402306020,1768653048701,-500.0,0.00016438,3]
[402306021,1768653048710,-500.0,0.00016438,3]
[402306022,1768653048719,-500.0,0.00016438,3]
[402306023,1768653048728,-500.0,0.00016438,3]
[402306024,1768653048738,-2140.55,0.00016438,3]
[402306025,1768653048747,-500.0,0.00016438,3]
[402306026,1768653048756,-500.0,0.00016438,3]
[402306027,1768653048766,-500.0,0.00016438,3]
[402306028,1768653048775,-500.0,0.00016438,3]
[402306029,1768653048785,-500.0,0.00016438,3]
[402306030,1768653048795,-500.0,0.00016438,3]
[402306031,1768653048805,-500.0,0.00016438,3]
[402306032,1768653048814,-500.0,0.00016438,3]
[402306033,1768653048824,-533.67555497,0.00016438,3]
[402306034,1768653048833,-500.0,0.00016438,3]
[402306035,1768653048841,-500.0,0.00016438,3]
[402306036,1768653048850,-526.3812206,0.00016438,3]
[402306037,1768653048860,-1225.34,0.00016438,3]
[402306038,1768653048869,-1577.53,0.00016438,3]
[402306039,1768653048878,-500.0,0.00016438,3]
[402306040,1768653048887,-500.0,0.00016438,3]
[402306041,1768653048896,-540.01468021,0.00016438,3]
[402306042,1768653048906,-500.0,0.00016438,3]
[402306043,1768653048915,-500.0,0.00016438,3]
[402306044,1768653048924,-500.0,0.00016438,2]
[402306045,1768653048934,-500.0,0.00016438,3]
[402306046,1768653048945,-500.0,0.00016438,3]
[402306047,1768653048954,-500.0,0.00016438,3]
[402306048,1768653048963,-500.0,0.00016438,3]
[402306049,1768653048972,-500.0,0.00016438,3]
[402306050,1768653048981,-500.0,0.00016438,3]
[402306051,1768653048991,-500.0,0.00016438,3]
[402306052,1768653049000,-500.0,0.00016438,3]
[402306053,1768653049009,-500.0,0.00016438,3]
[402306054,1768653049018,-501.29993361,0.00016438,3]
[402306055,1768653049027,-500.0,0.00016438,3]
[402306057,1768653049036,-500.0,0.00016438,3]
[402306059,1768653049045,-504.11,0.00016438,3]
[402306061,1768653049053,-500.0,0.00016438,3]
[402306063,1768653049062,-500.0,0.00016438,3]
[402306065,1768653049071,-540.84,0.00016438,3]
[402306067,1768653049079,-777.63,0.00016438,3]
[402306069,1768653049089,-500.0,0.00016438,3]
[402306071,1768653049097,-500.0,0.00016438,3]
[402306073,1768653049107,-1359.96,0.00016438,3]
[402306075,1768653049115,-645.08,0.00016438,3]
[402306077,1768653049124,-500.0,0.00016438,3]
[402306079,1768653049133,-500.0,0.00016438,3]
[402306081,1768653049142,-942.63,0.00016438,3]
[402306083,1768653049151,-500.0,0.00016438,3]
[402306085,1768653049160,-545.70994322,0.00016438,3]
[402306087,1768653049169,-500.0,0.00016438,3]
[402306089,1768653049179,-500.0,0.00016438,3]
[402306091,1768653049189,-500.0,0.00016438,3]
[402306093,1768653049199,-782.75,0.00016438,3]
[402306095,1768653049208,-1132.01,0.00016438,3]
[402306097,1768653049217,-500.0,0.00016438,3]
[402306099,1768653049226,-513.00114578,0.00016438,3]
[402306101,1768653049235,-500.0,0.00016438,3]
[402306103,1768653049245,-501.22117515,0.00016438,3]
[402306105,1768653049254,-500.0,0.00016438,3]
[402306107,1768653049263,-500.0,0.00016438,3]
[402306109,1768653049273,-500.0,0.00016438,3]
[402306111,1768653049283,-693.7,0.00016438,3]
[402306113,1768653049292,-500.0,0.00016438,3]
[402306115,1768653049301,-500.0,0.00016438,3]
[402306117,1768653049310,-500.0,0.00016438,3]
[402306119,1768653049319,-500.0,0.00016438,3]
[402306121,1768653049328,-500.0,0.00016438,3]
[402306123,1768653049337,-500.0,0.00016438,3]
[402306125,1768653049346,-500.0,0.00016438,3]
[402306127,1768653049355,-500.0,0.00016438,3]
[402306129,1768653049364,-500.0,0.00016438,3]
[402306131,1768653049374,-500.0,0.00016438,3]
[402306133,1768653049383,-500.0,0.00016438,3]
[402306135,1768653049393,-500.0,0.00016438,3]
[402306137,1768653049402,-1859.94,0.00016438,3]
[402306139,1768653049411,-1210.81,0.00016438,3]
[402306141,1768653049421,-1568.17,0.00016438,3]
[402306143,1768653049429,-500.0,0.00016438,3]
[402306145,1768653049438,-500.0,0.00016438,3]
[402306147,1768653049448,-500.0,0.00016438,3]
[402306149,1768653049457,-500.0,0.00016438,3]
[402306151,1768653049466,-1211.41,0.00016438,3]
[402306153,1768653049475,-1472.9,0.00016438,3]
[402306155,1768653049484,-931.1,0.00016438,3]
[402306157,1768653049494,-614.31374356,0.00016438,3]
[402306159,1768653049503,-500.0,0.00016438,3]
[402306161,1768653049512,-500.0,0.00016438,3]
[402306174,1768653049521,-522.78394003,0.00016438,3]
[402306177,1768653049640,-500.0,0.00016438,3]
[402306179,1768653049649,-1240.14,0.00016438,3]
[402306181,1768653049659,-611.86349143,0.00016438,3]
[402306183,1768653049668,-500.0,0.00016438,3]
[402306185,1768653049677,-500.0,0.00016438,3]
[402306187,1768653049688,-500.0,0.00016438,3]
[402306189,1768653049699,-582.22,0.00016438,3]
[402306191,1768653049708,-500.0,0.00016438,3]
[402306193,1768653049718,-500.0,0.00016438,3]
[402306195,1768653049727,-500.0,0.00016438,3]
[402306197,1768653049737,-500.0,0.00016438,3]
[402306199,1768653049747,-500.0,0.00016438,3]
[402306201,1768653049756,-784.75,0.00016438,3]
[402306203,1768653049765,-500.0,0.00016438,3]
[402306205,1768653049775,-775.14,0.00016438,3]
[402306207,1768653049784,-500.0,0.00016438,3]
[402306209,1768653049794,-500.0,0.00016438,3]
[402306211,1768653049803,-500.0,0.00016438,3]
[402306213,1768653049813,-842.12,0.00016438,3]
[402306215,1768653049822,-500.0,0.00016438,3]
[402306217,1768653049832,-500.0,0.00016438,3]
[402306219,1768653049842,-923.41,0.00016438,3]
[402306221,1768653049852,-500.0,0.00016438,3]
[402306223,1768653049862,-500.0,0.00016438,3]
[402306225,1768653049872,-500.0,0.00016438,3]
[402306227,1768653049881,-1782.4,0.00016438,3]
[402306229,1768653049891,-500.0,0.00016438,3]
[402306231,1768653049902,-552.83,0.00016438,3]
[402306234,1768653049911,-500.0,0.00016438,3]
[402306236,1768653049921,-500.0,0.00016438,3]
[402306238,1768653049931,-500.0,0.00016438,3]
[402306239,1768653049940,-500.0,0.00016438,3]
[402306242,1768653049950,-500.0,0.00016438,3]
[402306244,1768653049959,-500.0,0.00016438,3]
[402306246,1768653049968,-151.0,0.00016438,2]
[402306247,1768653049978,-518.59,0.00016438,3]
[402306250,1768653049987,-721.62,0.00016438,3]
[402306252,1768653049997,-1040.39,0.00016438,3]
[402306253,1768653050006,-500.0,0.00016438,3]
[402306256,1768653050016,-2007.96,0.00016438,3]
[402306258,1768653050025,-1158.63,0.00016438,3]
[402306260,1768653050035,-574.44,0.00016438,3]
[402306262,1768653050045,-500.0,0.00016438,3]
[402306263,1768653050055,-500.0,0.00016438,3]
[402306264,1768653050065,-533.25,0.00016438,3]
[402306265,1768653050075,-500.0,0.00016438,3]
[402306266,1768653050084,-500.0,0.00016438,3]
[402306267,1768653050095,-1776.82,0.00016438,3]
[402306268,1768653050106,-500.0,0.00016438,3]
[402306269,1768653050116,-500.0,0.00016438,3]
[402306270,1768653050125,-500.0,0.00016438,3]
[402306271,1768653050134,-628.44,0.00016438,3]
[402306272,1768653050144,-706.91,0.00016438,3]
[402306273,1768653050153,-781.61,0.00016438,3]
[402306274,1768653050163,-500.0,0.00016438,3]
[402306275,1768653050172,-1000.0,0.00016438,2]
[402306276,1768653050181,-617.92,0.00016438,3]
[402306277,1768653050191,-727.95,0.00016438,3]
[402306278,1768653050200,-500.0,0.00016438,3]
[402306279,1768653050210,-500.0,0.00016438,3]
[402306280,1768653050220,-630.14,0.00016438,3]
[402306281,1768653050229,-632.04690666,0.00016438,3]
[402306282,1768653050239,-500.0,0.00016438,3]
[402306283,1768653050249,-500.0,0.00016438,3]
[402306284,1768653050259,-500.0,0.00016438,3]
[402306285,1768653050269,-500.0,0.00016438,3]
[402306286,1768653050278,-1251.31,0.00016438,3]
[402306287,1768653050287,-1417.89,0.00016438,3]
[402306288,1768653050297,-500.0,0.00016438,3]
[402306289,1768653050306,-500.0,0.00016438,3]
[402306290,1768653050316,-577.84,0.00016438,3]
[402306291,1768653050325,-444.83809808,0.00016438,3]
[402306292,1768653050335,-500.0,0.00016438,3]
[402306293,1768653050344,-973.16,0.00016438,3]
[402306294,1768653050354,-500.0,0.00016438,3]
[402306295,1768653050363,-1088.19,0.00016438,3]
[402306296,1768653050373,-1036.96,0.00016438,3]
[402306297,1768653050382,-1329.23,0.00016438,3]
[402306298,1768653050391,-500.0,0.00016438,3]
[402306299,1768653050401,-500.0,0.00016438,3]
[402306300,1768653050410,-500.0,0.00016438,3]
[402306301,1768653050419,-500.0,0.00016438,3]
[402306302,1768653050429,-500.0,0.00016438,3]
[402306303,1768653050438,-921.27,0.00016438,3]
[402306304,1768653050448,-1127.31,0.00016438,3]
[402306305,1768653050457,-526.17897158,0.00016438,3]
[402306306,1768653050466,-500.0,0.00016438,3]
[402306307,1768653050476,-1509.89,0.00016438,3]
[402306308,1768653050485,-500.0,0.00016438,3]
[402306309,1768653050495,-500.0,0.00016438,3]
[402306310,1768653050504,-500.0,0.00016438,3]
[402306311,1768653050514,-500.0,0.00016438,3]
[402306312,1768653050523,-520.22,0.00016438,3]
[402306313,1768653050533,-500.0,0.00016438,3]
[402306314,1768653050544,-535.27896173,0.00016438,3]
[402306315,1768653050553,-500.0,0.00016438,3]
[402306316,1768653050563,-531.74,0.00016438,3]
[402306317,1768653050572,-500.0,0.00016438,3]
[402306318,1768653050582,-1025.56,0.00016438,3]
[402306319,1768653050591,-500.0,0.00016438,3]
[402306320,1768653050601,-500.0,0.00016438,3]
[402306321,1768653050612,-818.49,0.00016438,3]
[402306322,1768653050621,-500.0,0.00016438,3]
[402306323,1768653050637,-500.0,0.00016438,3]
[402306324,1768653050647,-700.82,0.00016438,3]
[402306325,1768653050658,-500.0,0.00016438,3]
[402306326,1768653050669,-500.0,0.00016438,3]
[402306327,1768653050679,-500.0,0.00016438,3]
[402306328,1768653050689,-500.0,0.00016438,3]
[402306329,1768653050699,-977.67,0.00016438,3]
[402306330,1768653050709,-500.0,0.00016438,3]
[402306331,1768653050719,-630.85,0.00016438,3]
[402306332,1768653050729,-500.0,0.00016438,3]
[402306333,1768653050739,-500.0,0.00016438,3]
[402306334,1768653050749,-500.0,0.00016438,3]
[402306335,1768653050760,-500.0,0.00016438,3]
[402306336,1768653050770,-500.0,0.00016438,3]
[402306337,1768653050781,-2456.62,0.00016438,3]
[402306338,1768653050791,-619.01,0.00016438,3]
[402306339,1768653050801,-500.0,0.00016438,3]
[402306340,1768653050811,-500.0,0.00016438,3]
[402306341,1768653050821,-1759.84,0.00016438,3]
[402306342,1768653050831,-500.0,0.00016438,3]
[402306343,1768653050841,-647.1,0.00016438,3]
[402306344,1768653050851,-500.0,0.00016438,3]
[402306345,1768653050861,-500.0,0.00016438,3]
[402306346,1768653050871,-500.0,0.00016438,3]
[402306347,1768653050881,-1436.74,0.00016438,3]
[402306348,1768653050891,-588.13,0.00016438,3]
[402306349,1768653050901,-500.0,0.00016438,3]
[402306350,1768653050911,-500.0,0.00016438,2]
[402306351,1768653050920,-172.6105479,0.00016438,3]
[402306352,1768653050931,-1441.58,0.00016438,3]
[402306353,1768653050941,-1626.75,0.00016438,3]
[402306354,1768653050950,-500.0,0.00016438,3]
[402306355,1768653050960,-1076.17,0.00016438,3]
[402306356,1768653050970,-619.77,0.00016438,3]
[402306357,1768653050981,-2016.32,0.00016438,3]
[402306358,1768653050990,-500.0,0.00016438,3]
[402306359,1768653051001,-500.0,0.00016438,3]
[402306360,1768653051011,-500.0,0.00016438,3]
[402306361,1768653051021,-500.0,0.00016438,3]
[402306362,1768653051031,-211.62283602,0.00016438,3]
[402306363,1768653051042,-1493.38,0.00016438,3]
[402306364,1768653051052,-500.0,0.00016438,3]
[402306365,1768653051063,-500.0,0.00016438,3]
[402306366,1768653051073,-523.78,0.00016438,3]
[402306367,1768653051083,-500.0,0.00016438,3]
[402306368,1768653051094,-523.99827377,0.00016438,3]
[402306369,1768653051104,-500.0,0.00016438,3]
[402306370,1768653051114,-1066.54,0.00016438,3]
[402306371,1768653051128,-522.75268188,0.00016438,3]